[Event "IIFL Wealth 4th Mumbai GM"]
[Site "Mumbai"]
[Date "2018.12.31"]
[Round "2"]
[White "Rahman, Ziaur"]
[Black "Balasubramaniam H"]
[Result "1/2-1/2"]
[ECO "A45"]
[WhiteElo "2468"]
[BlackElo "2270"]
[Annotator "RC"]
[PlyCount "143"]
[EventDate "2018.12.30"]
[EventType "swiss"]
[EventCountry "IND"]
[SourceTitle "playchess.com"]
[Source "ChessBase"]
[SourceQuality "1"]
[TimeControl "40/5400+30:1800+30"]

1. d4 {[%emt 0:00:17]} Nf6 {[%emt 0:02:08]} 2. Bg5 {[%emt 0:00:28]} d5 {[%emt 0:00:23]} 3. e3 {[%emt 0:02:02]} e6 {[%emt 0:01:21]} 4. Nd2 {[%emt 0:00:23]} Be7 {[%emt 0:00:41]} 5. Bd3 {[%emt 0:00:41]} O-O {[%emt 0:03:50]} 6. Ngf3 {[%emt 0:01:13]} Nbd7 {[%emt 0:00:21]} 7. c3 {[%emt 0:07:22]} b6 {[%emt 0:01:59]} 8. b4 {[%emt 0:04:45]} Bb7 {[%emt 0:01:11]} 9. Qb1 {[%emt 0:00:38]} h6 {[%emt 0:01:58]} 10. Bh4 {[%emt 0:01:03]} Ng4 {[%emt 0:13:27]} 11. Bg3 {[%emt 0:09:24]} Bd6 {[%emt 0:10:56]} 12. c4 {[%emt 0:11:08]} Bxg3 {[%emt 0:17:35]} 13. hxg3 {[%emt 0:00:13]} f5 {[%emt 0:03:07]} 14. cxd5 {[%emt 0:10:55]} Bxd5 {[%emt 0:00:06]} 15. Bc4 {[%emt 0:01:36]} Ndf6 {[%emt 0:04:59]} 16. Bxd5 {[%emt 0:03:00]} Qxd5 {[%emt 0:01:00]} 17. O-O {[%emt 0:02:24]} Rf7 {[%emt 0:07:08]} 18. Qb3 {[%emt 0:01:26]} a5 {[%emt 0:02:54]} 19. b5 {[%emt 0:00:30]} a4 {[%emt 0:00:30]} 20. Qc4 {[%emt 0:05:44]} Ra5 {[%emt 0:01:33]} 21. Rab1 {[%emt 0:01:03]} Ne4 {[%emt 0:02:39]} 22. Qxd5 {[%emt 0:08:44]} exd5 {[%emt 0:00:06]} 23. Nxe4 {[%emt 0:00:14]} fxe4 {[%emt 0:00:05]} 24. Nh2 {[%emt 0:01:00]} Nf6 {[%emt 0:00:18]} 25. Rfc1 {[%emt 0:00:50]} h5 {[%emt 0:00:50]} 26. Rb4 {[%emt 0:02:19]} Ne8 {[%emt 0:00:45]} 27. g4 {[%emt 0:01:20]} g6 {[%emt 0:03:26]} 28. gxh5 {[%emt 0:07:41]} gxh5 {[%emt 0:00:01]} 29. Nf1 {[%emt 0:00:12]} Nd6 {[%emt 0:01:30]} 30. Rcb1 {[%emt 0:00:47]} h4 {[%emt 0:00:19]} 31. Nd2 {[%emt 0:01:30]} Rg7 {[%emt 0:02:11]} 32. Kh2 {[%emt 0:03:29]} Ra8 {[%emt 0:00:32]} 33. f3 {[%emt 0:02:41]} Kh8 {[%emt 0:11:08]} 34. Re1 {[%emt 0:02:29]} a3 {[%emt 0:02:26]} 35. fxe4 {[%emt 0:00:30]} dxe4 {[%emt 0:00:30]} 36. Nc4 {[%emt 0:01:27]} Nf5 {[%emt 0:01:14]} 37. Rf1 {[%emt 0:01:06]} Nh6 {[%emt 0:01:45]} 38. Ne5 {[%emt 0:00:57]} Rag8 {[%emt 0:01:10]} 39. Rf2 {[%emt 0:00:02]} Rg5 {[%emt 0:00:44]} 40. Rc4 {[%emt 0:00:00]} R8g7 {[%emt 0:00:00]} 41. Rc3 {[%emt 0:07:26]} Re7 {[%emt 0:04:59]} 42. Rf4 {[%emt 0:03:44]} Reg7 {[%emt 0:03:22]} 43. Rc2 {[%emt 0:00:56]} Nf5 {[%emt 0:00:31]} 44. Rxe4 {[%emt 0:01:42]} Rg3 {[%emt 0:01:01]} 45. Nc4 {[%emt 0:06:19]} h3 {[%emt 0:00:31]} 46. gxh3 {[%emt 0:00:45]} Rh7 {[%emt 0:02:03]} 47. Re8+ {[%emt 0:00:53]} Kg7 {[%emt 0:00:15]} 48. Re7+ {[%emt 0:00:14]} Nxe7 {[%emt 0:01:02]} 49. Kxg3 {[%emt 0:00:05]} Nf5+ 50. Kh2 {[%emt 0:01:57]} Kf6 {[%emt 0:00:52]} 51. Rf2 {[%emt 0:01:59]} Ke6 {[%emt 0:00:07]} 52. Nxa3 {[%emt 0:00:42]} Nd6 {[%emt 0:00:07]} 53. Nb1 {[%emt 0:03:17]} Nxb5 {[%emt 0:00:12]} 54. a4 {[%emt 0:00:49]} Nd6 {[%emt 0:00:03]} 55. Nc3 {[%emt 0:00:05]} c5 {[%emt 0:01:28]} 56. dxc5 {[%emt 0:02:16]} bxc5 {[%emt 0:00:30]} 57. a5 {[%emt 0:00:30]} Ra7 {[%emt 0:00:35]} 58. Ra2 {[%emt 0:00:06]} Ra6 {[%emt 0:00:10]} 59. Ra4 {[%emt 0:00:47]} Nb7 {[%emt 0:00:51]} 60. Kg3 {[%emt 0:01:00]} Rxa5 {[%emt 0:03:56]} 61. Rxa5 {[%emt 0:00:07]} Nxa5 {[%emt 0:00:08]} 62. Kf4 {[%emt 0:00:24]} Nc6 {[%emt 0:00:45]} 63. h4 {[%emt 0:00:20]} Ne5 {[%emt 0:01:44]} 64. Ne4 {[%emt 0:06:32]} c4 {[%emt 0:00:22]} 65. Nc3 {[%emt 0:00:40]} Kf6 {[%emt 0:01:01]} 66. Ke4 {[%emt 0:01:17]} Ng4 {[%emt 0:00:12]} 67. Kf4 {[%emt 0:01:15]} Ne5 {[%emt 0:01:47]} 68. h5 {[%emt 0:01:40]} Nd3+ {[%emt 0:00:53]} 69. Kg4 {[%emt 0:00:06]} Ne5+ {[%emt 0:00:13]} 70. Kh4 {[%emt 0:00:16]} Nf3+ {[%emt 0:00:37]} 71. Kg3 {[%emt 0:00:05]} Ne5 {[%emt 0:00:15]} 72. Kf4 {[%emt 0:00:57]} 1/2-1/2

[Event "IIFL Wealth 4th Mumbai GM"]
[Site "Mumbai"]
[Date "2018.12.31"]
[Round "2"]
[White "Lugovskoy, Maxim"]
[Black "Saurabh Anand"]
[Result "1/2-1/2"]
[ECO "C49"]
[WhiteElo "2445"]
[BlackElo "2246"]
[Annotator "NA"]
[PlyCount "110"]
[EventDate "2018.12.30"]
[EventType "swiss"]
[EventCountry "IND"]
[SourceTitle "playchess.com"]
[Source "ChessBase"]
[SourceQuality "1"]
[TimeControl "40/5400+30:1800+30"]

1. e4 {[%emt 0:01:05]} e5 {[%emt 0:00:00]} 2. Nf3 {[%emt 0:00:09]} Nc6 {[%emt 0:00:16]} 3. Nc3 {[%emt 0:01:13]} Nf6 {[%emt 0:00:36]} 4. Bb5 {[%emt 0:00:06]} Bb4 {[%emt 0:00:32]} 5. O-O {[%emt 0:00:36]} O-O {[%emt 0:00:38]} 6. d3 {[%emt 0:00:06]} Bxc3 {[%emt 0:00:37]} 7. bxc3 {[%emt 0:00:06]} d6 {[%emt 0:00:21]} 8. Bg5 {[%emt 0:01:53]} Qe7 {[%emt 0:00:42]} 9. Re1 {[%emt 0:04:45]} a6 {[%emt 0:01:07]} 10. Ba4 {[%emt 0:00:32]} Nd8 {[%emt 0:01:28]} 11. d4 {[%emt 0:02:31]} Ne6 {[%emt 0:00:45]} 12. Bd2 {[%emt 0:05:19]} b5 {[%emt 0:01:09]} 13. Bb3 {[%emt 0:01:09]} Bb7 {[%emt 0:01:51]} 14. Bxe6 {[%emt 0:09:26]} Qxe6 {[%emt 0:10:08]} 15. d5 {[%emt 0:00:13]} Qe7 {[%emt 0:01:03]} 16. Bg5 {[%emt 0:01:15]} h6 {[%emt 0:00:42]} 17. Bh4 {[%emt 0:00:04]} c6 {[%emt 0:00:49]} 18. c4 {[%emt 0:01:49]} bxc4 {[%emt 0:03:39]} 19. Rb1 {[%emt 0:00:41]} Rab8 {[%emt 0:03:49]} 20. Rb6 {[%emt 0:09:30]} cxd5 {[%emt 0:05:00]} 21. exd5 {[%emt 0:00:59]} Qc7 {[%emt 0:01:58]} 22. Rxb7 {[%emt 0:08:59]} Rxb7 {[%emt 0:07:14]} 23. Bxf6 {[%emt 0:00:06]} gxf6 {[%emt 0:01:09]} 24. Nh4 {[%emt 0:00:05]} Kh7 {[%emt 0:00:43]} 25. Qh5 {[%emt 0:06:22]} Rg8 {[%emt 0:04:18]} 26. Qf5+ {[%emt 0:00:43]} Rg6 {[%emt 0:07:32]} 27. Nxg6 {[%emt 0:03:31]} fxg6 {[%emt 0:00:15]} 28. Qxf6 {[%emt 0:00:39]} Qa5 {[%emt 0:00:18]} 29. Rd1 {[%emt 0:01:56]} Qxd5 {[%emt 0:03:14]} 30. Qe7+ {[%emt 0:00:04]} Kg8 {[%emt 0:02:07]} 31. Qe8+ {[%emt 0:01:27]} Kg7 {[%emt 0:07:47]} 32. Qe7+ {[%emt 0:00:58]} Rxe7 {[%emt 0:00:15]} 33. Rxd5 {[%emt 0:00:03]} Rb7 {[%emt 0:00:17]} 34. f4 {[%emt 0:00:12]} Rb1+ {[%emt 0:03:21]} 35. Kf2 {[%emt 0:01:57]} Rb2 {[%emt 0:00:09]} 36. Rxd6 {[%emt 0:03:47]} Rxc2+ {[%emt 0:01:36]} 37. Kf3 {[%emt 0:00:05]} e4+ {[%emt 0:09:47]} 38. Kxe4 {[%emt 0:00:18]} Rxa2 {[%emt 0:01:54]} 39. Rc6 {[%emt 0:00:37]} Rxg2 {[%emt 0:01:12]} 40. Rc7+ {[%emt 0:00:00]} Kf6 {[%emt 0:00:00]} 41. Rc6+ {[%emt 0:01:54]} Ke7 {[%emt 0:03:36]} 42. Rxc4 {[%emt 0:08:17]} Re2+ {[%emt 0:01:27]} 43. Kf3 {[%emt 0:00:58]} Re6 {[%emt 0:01:44]} 44. Ra4 {[%emt 0:02:00]} Kd7 {[%emt 0:02:15]} 45. Kg4 {[%emt 0:00:40]} Rf6 {[%emt 0:00:28]} 46. h4 {[%emt 0:00:42]} Kc7 {[%emt 0:02:04]} 47. h5 {[%emt 0:00:05]} gxh5+ {[%emt 0:00:13]} 48. Kxh5 {[%emt 0:00:03]} Kb6 {[%emt 0:00:11]} 49. Kg4 {[%emt 0:00:25]} a5 {[%emt 0:00:20]} 50. f5 {[%emt 0:00:42]} Kb5 {[%emt 0:00:10]} 51. Ra2 {[%emt 0:02:14]} a4 {[%emt 0:00:34]} 52. Kf4 {[%emt 0:00:04]} Kb4 {[%emt 0:01:06]} 53. Ke5 {[%emt 0:00:05]} Rf8 {[%emt 0:00:14]} 54. Rh2 {[%emt 0:00:37]} Rh8 {[%emt 0:00:59]} 55. f6 {[%emt 0:01:47]} a3 {[%emt 0:00:40]} 1/2-1/2

[Event "IIFL Wealth 4th Mumbai GM"]
[Site "Mumbai"]
[Date "2018.12.31"]
[Round "2"]
[White "Laxman, R.R."]
[Black "Navalgund, Niranjan"]
[Result "1/2-1/2"]
[ECO "A49"]
[WhiteElo "2436"]
[BlackElo "2240"]
[Annotator "NA"]
[PlyCount "48"]
[EventDate "2018.12.30"]
[EventType "swiss"]
[EventCountry "IND"]
[SourceTitle "playchess.com"]
[Source "ChessBase"]
[SourceQuality "1"]
[TimeControl "40/5400+30:1800+30"]

1. d4 {[%emt 0:00:00]} Nf6 {[%emt 0:00:00]} 2. Nf3 {[%emt 0:00:00]} g6 {[%emt 0:00:00]} 3. g3 {[%emt 0:00:00]} Bg7 {[%emt 0:00:00]} 4. Bg2 {[%emt 0:00:00]} O-O {[%emt 0:00:00]} 5. O-O {[%emt 0:00:35]} d6 {[%emt 0:00:00]} 6. Nc3 {[%emt 0:00:19]} d5 {[%emt 0:03:16]} 7. Re1 {[%emt 0:00:21]} Bf5 {[%emt 0:08:42]} 8. Nh4 {[%emt 0:00:49]} Bg4 {[%emt 0:00:36]} 9. h3 {[%emt 0:00:25]} Be6 {[%emt 0:01:15]} 10. Nf3 {[%emt 0:01:19]} h6 {[%emt 0:05:24]} 11. e4 {[%emt 0:02:26]} dxe4 {[%emt 0:01:01]} 12. Nxe4 {[%emt 0:00:02]} Nxe4 {[%emt 0:00:11]} 13. Rxe4 {[%emt 0:00:02]} Bd5 {[%emt 0:00:11]} 14. Re1 {[%emt 0:05:12]} Re8 {[%emt 0:23:36]} 15. c3 {[%emt 0:00:37]} Nc6 {[%emt 0:01:56]} 16. Bf4 {[%emt 0:00:53]} g5 {[%emt 0:01:53]} 17. Be3 {[%emt 0:00:17]} e5 {[%emt 0:12:33]} 18. dxe5 {[%emt 0:00:54]} Nxe5 {[%emt 0:00:01]} 19. Nxe5 {[%emt 0:01:23]} Rxe5 {[%emt 0:02:55]} 20. Bxd5 {[%emt 0:11:11]} Qxd5 {[%emt 0:01:44]} 21. Qb3 {[%emt 0:02:17]} Qf3 {[%emt 0:04:59]} 22. Qd1 {[%emt 0:02:21]} Qd5 {[%emt 0:00:59]} 23. Qb3 {[%emt 0:02:20]} Qf3 {[%emt 0:00:01]} 24. Qd1 {[%emt 0:00:07]} Qd5 {[%emt 0:00:02]} 1/2-1/2

[Event "IIFL Wealth 4th Mumbai GM"]
[Site "Mumbai"]
[Date "2018.12.31"]
[Round "2"]
[White "Rajesh, V A V"]
[Black "Soham Datar"]
[Result "1-0"]
[ECO "D12"]
[WhiteElo "2402"]
[BlackElo "2134"]
[Annotator "NA"]
[PlyCount "55"]
[EventDate "2018.12.30"]
[EventType "swiss"]
[EventCountry "IND"]
[SourceTitle "playchess.com"]
[Source "ChessBase"]
[SourceQuality "1"]
[TimeControl "40/5400+30:1800+30"]

1. d4 {[%emt 0:00:00]} d5 {[%emt 0:00:00]} 2. c4 {[%emt 0:00:00]} c6 {[%emt 0:00:00]} 3. Nf3 {[%emt 0:00:00]} Nf6 {[%emt 0:00:00]} 4. e3 {[%emt 0:00:06]} Bf5 {[%emt 0:00:01]} 5. Nc3 {[%emt 0:00:10]} e6 {[%emt 0:00:39]} 6. Be2 {[%emt 0:01:23]} Nbd7 {[%emt 0:00:17]} 7. Nh4 {[%emt 0:04:31]} Be4 {[%emt 0:00:08]} 8. f3 {[%emt 0:03:10]} Bg6 {[%emt 0:00:09]} 9. O-O {[%emt 0:00:29]} Bd6 {[%emt 0:02:01]} 10. cxd5 {[%emt 0:05:07]} Ng4 {[%emt 0:10:03]} 11. f4 {[%emt 0:02:00]} Nxh2 {[%emt 0:02:28]} 12. dxe6 {[%emt 0:00:34]} Qxh4 {[%emt 0:02:40]} 13. exd7+ {[%emt 0:00:05]} Kxd7 {[%emt 0:00:49]} 14. Rf2 {[%emt 0:00:08]} Qg3 {[%emt 0:03:50]} 15. f5 {[%emt 0:01:55]} Rae8 {[%emt 0:04:00]} 16. e4 {[%emt 0:00:59]} Nf3+ {[%emt 0:06:29]} 17. Rxf3 {[%emt 0:05:26]} Qh2+ {[%emt 0:00:19]} 18. Kf2 {[%emt 0:03:03]} Qh4+ {[%emt 0:00:07]} 19. Ke3 {[%emt 0:00:57]} Rxe4+ {[%emt 0:02:54]} 20. Nxe4 {[%emt 0:00:06]} Re8 {[%emt 0:00:04]} 21. Bd3 {[%emt 0:13:20]} Bh5 {[%emt 0:02:04]} 22. Qf1 {[%emt 0:04:17]} Bxf3 23. gxf3 {[%emt 0:01:23]} Qh2 {[%emt 0:05:26]} 24. Qf2 {[%emt 0:01:10]} Bf4+ {[%emt 0:01:25]} 25. Ke2 {[%emt 0:00:05]} Qh1 {[%emt 0:00:04]} 26. Qf1 {[%emt 0:01:33]} Qh2+ {[%emt 0:00:15]} 27. Kd1 {[%emt 0:00:05]} Bxc1 {[%emt 0:00:29]} 28. Kxc1 {[%emt 0:00:05]} 1-0

[Event "IIFL Wealth 4th Mumbai GM"]
[Site "Mumbai"]
[Date "2018.12.31"]
[Round "2"]
[White "Ravi, Teja S."]
[Black "Thipsay, Bagyashree Sathe"]
[Result "1-0"]
[ECO "A80"]
[WhiteElo "2396"]
[BlackElo "2028"]
[Annotator "NA"]
[PlyCount "67"]
[EventDate "2018.12.30"]
[EventType "swiss"]
[EventCountry "IND"]
[SourceTitle "playchess.com"]
[Source "ChessBase"]
[SourceQuality "1"]
[TimeControl "40/5400+30:1800+30"]

1. d4 f5 2. Nf3 Nf6 3. c4 e6 4. e3 Bb4+ 5. Bd2 a5 6. Bxb4 axb4 7. Qb3 Qe7 8. c5 Nc6 9. Bb5 Nd5 10. O-O O-O 11. Nbd2 d6 12. cxd6 cxd6 13. a4 Bd7 14. Qd3 Kh8 15. Rfe1 Nd8 16. e4 Nf4 17. Qf1 fxe4 18. Rxe4 Bc6 19. Bxc6 bxc6 20. b3 d5 21. Re3 c5 22. dxc5 Qxc5 23. Ne5 Nf7 24. Nd7 Qd6 25. Nxf8 Rxf8 26. a5 d4 27. Ree1 d3 28. a6 Ng5 29. h4 Ne2+ 30. Rxe2 dxe2 31. Qxe2 Qd4 32. Ra5 Qxh4 33. a7 Ra8 34. Qe5 1-0

[Event "IIFL Wealth 4th Mumbai GM"]
[Site "Mumbai"]
[Date "2018.12.31"]
[Round "2"]
[White "Raahul V S"]
[Black "Nayem, Haque"]
[Result "1/2-1/2"]
[ECO "A20"]
[WhiteElo "2381"]
[BlackElo "2083"]
[Annotator "NA"]
[PlyCount "172"]
[EventDate "2018.12.30"]
[EventType "swiss"]
[EventCountry "IND"]
[SourceTitle "playchess.com"]
[Source "ChessBase"]
[SourceQuality "1"]
[TimeControl "40/5400+30:1800+30"]

1. c4 {[%emt 0:00:00]} e5 {[%emt 0:02:56]} 2. g3 {[%emt 0:00:36]} Nf6 {[%emt 0:02:24]} 3. Bg2 {[%emt 0:00:23]} d5 {[%emt 0:00:17]} 4. cxd5 {[%emt 0:00:03]} Nxd5 {[%emt 0:00:06]} 5. Nc3 {[%emt 0:00:02]} Ne7 {[%emt 0:00:29]} 6. Nf3 {[%emt 0:01:35]} Nbc6 {[%emt 0:00:03]} 7. O-O {[%emt 0:01:12]} g6 {[%emt 0:00:10]} 8. b4 {[%emt 0:08:29]} a6 {[%emt 0:00:06]} 9. Bb2 {[%emt 0:01:14]} Bg7 {[%emt 0:00:10]} 10. a3 {[%emt 0:00:39]} O-O {[%emt 0:00:10]} 11. Rc1 {[%emt 0:00:41]} h6 {[%emt 0:00:27]} 12. d3 {[%emt 0:02:16]} Be6 {[%emt 0:03:19]} 13. Nd2 {[%emt 0:04:25]} Qc8 {[%emt 0:06:14]} 14. Re1 {[%emt 0:00:22]} Rd8 {[%emt 0:01:00]} 15. Na4 {[%emt 0:06:47]} Ra7 {[%emt 0:03:25]} 16. Nc5 {[%emt 0:02:00]} Bd5 {[%emt 0:00:52]} 17. e4 {[%emt 0:05:29]} Be6 {[%emt 0:00:56]} 18. Nf1 {[%emt 0:00:22]} Bh3 {[%emt 0:07:08]} 19. Bh1 {[%emt 0:01:11]} b6 {[%emt 0:01:27]} 20. Na4 {[%emt 0:01:28]} Qd7 {[%emt 0:00:39]} 21. Ne3 {[%emt 0:13:49]} Be6 {[%emt 0:04:19]} 22. Nc3 {[%emt 0:03:50]} Nd4 {[%emt 0:03:00]} 23. Ncd5 {[%emt 0:01:21]} Bxd5 {[%emt 0:28:22]} 24. exd5 {[%emt 0:00:48]} Ndf5 {[%emt 0:00:52]} 25. Nxf5 {[%emt 0:01:22]} Qxf5 {[%emt 0:00:39]} 26. d4 {[%emt 0:00:09]} e4 {[%emt 0:05:52]} 27. Bxe4 {[%emt 0:01:58]} Qd7 {[%emt 0:00:02]} 28. Qb3 {[%emt 0:01:03]} Nxd5 {[%emt 0:08:11]} 29. Bxd5 {[%emt 0:00:23]} Qxd5 {[%emt 0:00:17]} 30. Re8+ {[%emt 0:00:01]} Kh7 {[%emt 0:01:52]} 31. Qxd5 {[%emt 0:00:06]} Rxd5 {[%emt 0:00:30]} 32. Re7 {[%emt 0:00:03]} Kg8 {[%emt 0:08:49]} 33. Rc4 {[%emt 0:07:28]} Bf6 {[%emt 0:02:48]} 34. Re2 {[%emt 0:00:36]} a5 {[%emt 0:04:36]} 35. Rc6 {[%emt 0:08:21]} Kg7 {[%emt 0:03:25]} 36. bxa5 {[%emt 0:01:18]} bxa5 {[%emt 0:00:22]} 37. a4 {[%emt 0:00:20]} Rb7 {[%emt 0:00:39]} 38. Bc3 {[%emt 0:00:01]} Rd6 {[%emt 0:01:29]} 39. Rc4 {[%emt 0:00:57]} Rd5 {[%emt 0:00:31]} 40. Re8 {[%emt 0:00:00]} Rb1+ {[%emt 0:00:00]} 41. Kg2 {[%emt 0:00:39]} Rd1 {[%emt 0:12:55]} 42. Re4 {[%emt 0:00:45]} Kg8 {[%emt 0:12:40]} 43. Rf4 {[%emt 0:04:32]} Bd8 {[%emt 0:01:51]} 44. Re4 {[%emt 0:02:48]} Bf6 {[%emt 0:00:17]} 45. Rf4 {[%emt 0:03:28]} Bd8 {[%emt 0:01:03]} 46. Rf3 {[%emt 0:00:02]} Rb1 {[%emt 0:01:38]} 47. Re3 {[%emt 0:00:40]} Kf8 {[%emt 0:00:58]} 48. Re5 {[%emt 0:00:39]} c6 {[%emt 0:02:13]} 49. Rxd5 {[%emt 0:01:15]} cxd5 {[%emt 0:00:21]} 50. Rc5 {[%emt 0:00:03]} Ke8 {[%emt 0:01:40]} 51. Rxd5 {[%emt 0:00:14]} Rd1 {[%emt 0:00:14]} 52. Rc5 {[%emt 0:00:54]} Kd7 {[%emt 0:00:44]} 53. Kf3 {[%emt 0:01:04]} Bb6 {[%emt 0:00:18]} 54. Re5 {[%emt 0:05:46]} Rb1 {[%emt 0:00:29]} 55. Bxa5 {[%emt 0:00:21]} Rb3+ {[%emt 0:00:22]} 56. Kg2 {[%emt 0:00:29]} f6 {[%emt 0:00:24]} 57. Rd5+ {[%emt 0:00:27]} Ke6 {[%emt 0:00:28]} 58. Bxb6 {[%emt 0:00:17]} Kxd5 {[%emt 0:00:07]} 59. Bc5 {[%emt 0:00:00]} Kc6 {[%emt 0:01:04]} 60. a5 {[%emt 0:00:02]} Kb5 {[%emt 0:00:27]} 61. Bb6 {[%emt 0:00:53]} g5 {[%emt 0:00:26]} 62. g4 {[%emt 0:00:17]} Ra3 {[%emt 0:00:17]} 63. Bd8 {[%emt 0:00:44]} Kc4 {[%emt 0:00:13]} 64. Bxf6 {[%emt 0:00:31]} Rxa5 {[%emt 0:00:09]} 65. Bg7 {[%emt 0:00:59]} Ra6 {[%emt 0:00:29]} 66. Kg3 {[%emt 0:00:26]} Kd5 {[%emt 0:00:24]} 67. f3 {[%emt 0:00:41]} Rg6 {[%emt 0:00:58]} 68. Be5 {[%emt 0:00:02]} Ra6 {[%emt 0:00:00]} 69. Bg7 {[%emt 0:00:58]} Rg6 {[%emt 0:01:00]} 70. Be5 {[%emt 0:00:02]} Ra6 {[%emt 0:00:21]} 71. h4 {[%emt 0:00:35]} Ke6 {[%emt 0:01:09]} 72. h5 {[%emt 0:00:24]} Ra7 {[%emt 0:00:24]} 73. f4 {[%emt 0:00:29]} Ra3+ {[%emt 0:00:32]} 74. Kf2 {[%emt 0:00:02]} Ra2+ {[%emt 0:00:11]} 75. Kf3 {[%emt 0:00:09]} Kd5 {[%emt 0:01:00]} 76. fxg5 {[%emt 0:00:53]} hxg5 {[%emt 0:00:24]} 77. Bf6 {[%emt 0:00:46]} Ra3+ {[%emt 0:00:17]} 78. Ke2 {[%emt 0:00:10]} Ra2+ {[%emt 0:00:23]} 79. Kd3 {[%emt 0:00:21]} Ra3+ {[%emt 0:01:06]} 80. Kc2 {[%emt 0:00:01]} Ra2+ {[%emt 0:00:24]} 81. Kb3 {[%emt 0:00:24]} Rh2 {[%emt 0:00:42]} 82. Kb4 {[%emt 0:00:25]} Rh4 {[%emt 0:00:22]} 83. Bxg5 {[%emt 0:00:21]} Rxg4 {[%emt 0:00:19]} 84. Bf6 {[%emt 0:00:03]} Rf4 {[%emt 0:00:31]} 85. Bg7 {[%emt 0:00:03]} Rh4 {[%emt 0:00:08]} 86. h6 {[%emt 0:00:02]} Rxh6 {[%emt 0:00:19]} 1/2-1/2

[Event "IIFL Wealth 4th Mumbai GM"]
[Site "Mumbai"]
[Date "2018.12.31"]
[Round "2"]
[White "Sammed Jaykumar, Shete"]
[Black "Aaryan Varshney"]
[Result "1-0"]
[ECO "B90"]
[WhiteElo "2378"]
[BlackElo "2200"]
[Annotator "NA"]
[PlyCount "152"]
[EventDate "2018.12.30"]
[EventType "swiss"]
[EventCountry "IND"]
[SourceTitle "playchess.com"]
[Source "ChessBase"]
[SourceQuality "1"]
[TimeControl "40/5400+30:1800+30"]

1. e4 c5 {[%emt 0:00:52]} 2. Nf3 {[%emt 0:00:00]} d6 {[%emt 0:00:03]} 3. d4 {[%emt 0:00:00]} cxd4 {[%emt 0:00:05]} 4. Nxd4 {[%emt 0:00:00]} Nf6 {[%emt 0:00:04]} 5. Nc3 {[%emt 0:00:00]} a6 {[%emt 0:00:02]} 6. Nb3 {[%emt 0:00:15]} e5 {[%emt 0:02:52]} 7. Bg5 {[%emt 0:00:12]} Be7 {[%emt 0:00:27]} 8. Bxf6 {[%emt 0:00:11]} Bxf6 {[%emt 0:00:05]} 9. Qd3 {[%emt 0:00:07]} Be6 {[%emt 0:01:01]} 10. O-O-O {[%emt 0:02:38]} Be7 {[%emt 0:00:18]} 11. Nd5 {[%emt 0:04:33]} Bxd5 {[%emt 0:01:09]} 12. Qxd5 {[%emt 0:00:07]} Nc6 {[%emt 0:00:25]} 13. c3 {[%emt 0:00:14]} O-O {[%emt 0:00:46]} 14. g3 {[%emt 0:04:03]} Qb6 {[%emt 0:04:47]} 15. Qd2 {[%emt 0:04:00]} Rac8 {[%emt 0:08:37]} 16. Kb1 {[%emt 0:01:47]} Na5 {[%emt 0:06:24]} 17. Nxa5 {[%emt 0:07:38]} Qxa5 {[%emt 0:00:03]} 18. h4 {[%emt 0:00:13]} b5 {[%emt 0:01:13]} 19. Bd3 {[%emt 0:02:01]} Qb6 {[%emt 0:06:07]} 20. Bc2 {[%emt 0:03:05]} a5 {[%emt 0:00:26]} 21. Bb3 {[%emt 0:00:42]} b4 {[%emt 0:01:25]} 22. cxb4 {[%emt 0:00:52]} Qxb4 {[%emt 0:00:11]} 23. Qxb4 {[%emt 0:02:09]} axb4 {[%emt 0:00:11]} 24. Rd5 {[%emt 0:03:22]} Rc5 {[%emt 0:18:08]} 25. Rxc5 {[%emt 0:10:23]} dxc5 {[%emt 0:00:02]} 26. Rd1 {[%emt 0:00:07]} Rd8 {[%emt 0:17:15]} 27. Rxd8+ {[%emt 0:06:38]} Bxd8 {[%emt 0:00:02]} 28. Kc2 {[%emt 0:07:50]} c4 {[%emt 0:08:01]} 29. Bxc4 {[%emt 0:00:20]} Bb6 {[%emt 0:00:28]} 30. f3 {[%emt 0:00:14]} Kf8 {[%emt 0:00:43]} 31. Kb3 {[%emt 0:00:25]} Bc5 {[%emt 0:00:12]} 32. Bd5 {[%emt 0:05:42]} f6 {[%emt 0:04:11]} 33. Kc4 {[%emt 0:02:16]} Bd6 {[%emt 0:00:48]} 34. Kb5 {[%emt 0:03:20]} Ke8 {[%emt 0:01:02]} 35. Kc6 {[%emt 0:01:10]} Be7 {[%emt 0:01:09]} 36. Bg8 {[%emt 0:00:33]} h6 {[%emt 0:00:25]} 37. h5 {[%emt 0:01:38]} Bf8 {[%emt 0:01:36]} 38. Kd5 {[%emt 0:11:44]} Kd7 {[%emt 0:01:04]} 39. Be6+ {[%emt 0:00:15]} Ke8 {[%emt 0:00:22]} 40. Bf5 {[%emt 0:00:00]} Be7 {[%emt 0:00:00]} 41. f4 {[%emt 0:04:58]} exf4 {[%emt 0:13:39]} 42. gxf4 {[%emt 0:00:11]} Bf8 {[%emt 0:01:45]} 43. e5 {[%emt 0:03:21]} fxe5 {[%emt 0:00:42]} 44. fxe5 {[%emt 0:00:06]} Be7 {[%emt 0:00:38]} 45. Ke6 {[%emt 0:00:44]} Bc5 {[%emt 0:01:48]} 46. Bg6+ {[%emt 0:00:23]} Kd8 {[%emt 0:02:29]} 47. Kf7 {[%emt 0:02:48]} Bd4 {[%emt 0:01:36]} 48. e6 {[%emt 0:00:05]} Bc5 {[%emt 0:00:04]} 49. Bf5 {[%emt 0:00:21]} Bd6 {[%emt 0:00:31]} 50. Kxg7 {[%emt 0:00:17]} Bf4 {[%emt 0:01:29]} 51. Kf6 {[%emt 0:04:23]} Bg5+ {[%emt 0:00:29]} 52. Ke5 {[%emt 0:00:23]} Be7 {[%emt 0:05:17]} 53. Kd5 {[%emt 0:00:42]} Kc7 {[%emt 0:00:32]} 54. Bg4 {[%emt 0:00:32]} Kb6 {[%emt 0:02:26]} 55. Kc4 {[%emt 0:00:19]} Kc6 {[%emt 0:00:59]} 56. Kb3 {[%emt 0:00:18]} Kb5 {[%emt 0:01:08]} 57. a3 {[%emt 0:00:14]} bxa3 {[%emt 0:00:15]} 58. bxa3 {[%emt 0:00:05]} Kb6 {[%emt 0:02:56]} 59. a4 {[%emt 0:00:10]} Ka5 {[%emt 0:00:06]} 60. Bd1 {[%emt 0:00:06]} Kb6 {[%emt 0:00:45]} 61. Kc4 {[%emt 0:00:05]} Bf8 {[%emt 0:02:00]} 62. Kd5 {[%emt 0:00:17]} Be7 {[%emt 0:00:23]} 63. Be2 {[%emt 0:00:35]} Bf8 {[%emt 0:00:20]} 64. a5+ {[%emt 0:00:46]} Kxa5 {[%emt 0:00:25]} 65. Kc6 {[%emt 0:00:04]} Ba3 {[%emt 0:02:34]} 66. Kd7 {[%emt 0:00:11]} Kb6 {[%emt 0:00:03]} 67. e7 {[%emt 0:00:04]} Bxe7 {[%emt 0:00:03]} 68. Kxe7 {[%emt 0:00:04]} Kc7 {[%emt 0:00:14]} 69. Kf7 {[%emt 0:00:04]} Kd6 {[%emt 0:00:04]} 70. Kg7 {[%emt 0:00:04]} Ke7 {[%emt 0:00:08]} 71. Kxh6 {[%emt 0:00:05]} Kf8 {[%emt 0:00:03]} 72. Bc4 {[%emt 0:00:05]} Ke7 {[%emt 0:00:14]} 73. Kg7 {[%emt 0:00:04]} Kd6 {[%emt 0:00:13]} 74. h6 {[%emt 0:00:05]} Kc5 {[%emt 0:00:02]} 75. h7 {[%emt 0:00:06]} Kxc4 {[%emt 0:00:03]} 76. h8=Q {[%emt 0:00:06]} Kd5 1-0